Cogmind - Beta 11.2 @@@ ROGUE MODE // 2022.12.27 @ 16:37:20 // Winter2022/Polymind Player: Themeralderp Result: Destroyed by S-27 Virus with Autogun Performance ------------- Evolutions (3) 1500 Regions Visited (5) 1000 Robots Destroyed (57) 285 Value Destroyed (2080) 2080 Prototype IDs (1) 20 Alien Tech Used (0) 0 Bonus (3809) 3809 TOTAL SCORE: 8324 Bonus ------- Polymind Skill 2572 Pacifist 200 High Alert Combat Kills 150 Follower Combat Kills 187 Entered Garrisons 200 Used RIF Installer 500 Cogmind --------- Core Integrity 0/700 Matter 0/0 Energy 50/50 System Corruption 1% Temperature Cool (0) Movement Walking (120) Location -7/Garrison Parts ------- > --- POWER (1) -------- (None) > --- PROPULSION (2) --- Aluminum Leg Aluminum Leg > --- UTILITY (1) ------ Improved Heat Sink > --- WEAPON (1) ------- Particle Gun > --- INVENTORY (1) ---- (None) Peak State ------------ > --- POWER ------------ Reinforced Deuterium Engine > --- PROPULSION ------- Armored Treads Armored Treads Armored Treads > --- UTILITY ---------- Cooling System Visual Processing Unit Active Sensor Suite Targeting Computer Weapon Cycler Transmission Jammer Hardened Heavy Armor Plating Graphene Brace Dynamic Insulation System > --- WEAPON ----------- Heavy Assault Cannon > --- INVENTORY -------- (None) [Rating: 78] Favorites ----------- Power Light Ion Engine Engine Light Ion Engine Power Core Light Nuclear Core Propulsion Compact Wheel Treads Armored Treads Leg Carbon-fiber Leg Wheel Compact Wheel Utility Targeting Computer Device Tractor Beam Storage Small Storage Unit Processor Targeting Computer Protection Hardened Heavy Armor Plating Weapon Gauss Rifle Energy Gun Beam Rifle Ballistic Gun Gauss Rifle Ballistic Cannon Heavy Assault Cannon Build | -11 -10 -9 -8 -7 -7 ------- Run | Scr Mat Mat Mat Fac Gar Slots Evolved . | . . . . . . Power . | . . . . . . Propulsion . | . . . . . . Utility . | . . . . . . Weapon . | . . . . . . Parts Attached . | . . . . . . Power . | . . . . . . Engine . | . . . . . . Core . | . . . . . . Reactor . | . . . . . . Propulsion . | . . . . . . Treads . | . . . . . . Leg . | . . . . . . Wheel . | . . . . . . Hover . | . . . . . . Flight . | . . . . . . Utility . | . . . . . . Device . | . . . . . . Storage . | . . . . . . Processor . | . . . . . . Hackware . | . . . . . . Protection . | . . . . . . Artifact . | . . . . . . Weapon . | . . . . . . Energy Gun . | . . . . . . Energy Cannon . | . . . . . . Ballistic Gun . | . . . . . . Ballistic Cannon . | . . . . . . Launcher . | . . . . . . Special Weapon . | . . . . . . Impact Weapon . | . . . . . . Slashing Weapon . | . . . . . . Piercing Weapon . | . . . . . . Special Melee Weapon . | . . . . . . Unidentified Prototypes . | . . . . . . Parts Lost 26 | . . 3 8 . 15 Power 5 | . . 1 1 . 3 Propulsion 6 | . . 1 2 . 3 Utility 8 | . . 1 2 . 5 Weapon 7 | . . . 3 . 4 Highest Loss Streak 7 | . . 3 6 . 7 To Critical Strikes . | . . . . . . Average Slot Usage (%) 90 | . 100 92 91 90 82 Engine 9 | . 20 18 2 14 3 Core 4 | . . . 9 . 5 Treads 5 | . . . 5 5 9 Leg 10 | . . 17 24 . 16 Wheel 14 | . 40 20 . 26 . Device 17 | . 20 17 6 23 25 Storage 7 | . 20 10 . 13 . Processor 6 | . . . 11 3 5 Protection 2 | . . . 2 1 3 Energy Gun 2 | . . 8 2 . 9 Ballistic Gun 8 | . . . 23 . 1 Ballistic Cannon 1 | . . . . 1 2 Naked Turns 61 | . . 11 14 33 3 Heaviest Build 58 | 9 9 9 18 58 58 Greatest Support 60 | 32 32 32 40 60 60 Greatest Overweight (x) 3 | . . . 3 . . Average Overweight (x) . | . . . . . . Largest Inventory Capacity 4 | 4 4 4 1 4 1 Average Capacity 2 | 1 4 2 . 2 . Most Carried 4 | . . 2 1 4 . Average Carried . | . . . . 1 . Final Capacity 4 | 4 4 . . 1 1 Final Carried . | . . . . . . Class Distribution -------------------- 35% | Recycler 24% | Hunter 21% | Heavy 9% | Sentry 7% | Grunt Dominant Class ---------------- Recycler | -10/Materials Recycler | -9/Materials Hunter | -8/Materials Recycler | -7/Factory Heavy | -7/Garrison Resources | -11 -10 -9 -8 -7 -7 ----------- Run | Scr Mat Mat Mat Fac Gar Matter Collected 670 | . . . 359 112 199 Remotely . | . . . . . . Salvage Created 1766 | . . 106 880 134 646 Parts 116 | . . 12 59 18 27 Haulers Intercepted . | . . . . . . Recyclers Shooed . | . . . . . . Parts Field Recycled . | . . . . . . Retrieved Matter . | . . . . . . Parts Self-Destructed . | . . . . . . Prevented . | . . . . . . Kills | -11 -10 -9 -8 -7 -7 ------- Run | Scr Mat Mat Mat Fac Gar Combat Hostiles Destroyed 50 | . . 6 21 5 18 Guns 41 | . . 6 21 . 14 Cannons 9 | . . . . 5 4 Classes Destroyed 11 | . . 1 6 2 2 Worker 1 | . . . 1 . . Builder 2 | . . . 1 1 . Operator 1 | . . . . 1 . Watcher 3 | . . . 3 . . Swarmer 15 | . . 6 7 . 2 Grunt 19 | . . . 7 2 10 Sentry 7 | . . . 5 1 1 Specialist 3 | . . . . . 3 Hunter 3 | . . . 2 1 . Programmer 2 | . . . . 1 1 Heavy 1 | . . . . . 1 Best Kill Streak 9 | . . 6 9 3 7 Combat Bots Only 7 | . . 6 6 2 7 Max Kills in Single Turn 1 | . . 1 1 1 1 Gunslinging . | . . . . . . Exploded . | . . . . . . Melee . | . . . . . . Uniques/NPCs Destroyed . | . . . . . . Combat | -11 -10 -9 -8 -7 -7 -------- Run | Scr Mat Mat Mat Fac Gar Damage Taken 6469 | . . 466 1972 342 3689 Core 1383 | . . 229 445 92 617 Absorbed by Shields . | . . . . . . Core Remaining (%) 65 | 100 100 42 19 . . Volleys Fired 212 | . . 19 90 16 87 Largest 2 | . . 1 2 1 2 Hottest 108 | . . 40 79 60 108 Shots Fired 295 | . . 19 161 16 99 Gun 263 | . . 19 161 . 83 Cannon 32 | . . . . 16 16 Launcher . | . . . . . . Special . | . . . . . . Kinetic 184 | . . . 140 16 28 Thermal 111 | . . 19 21 . 71 Explosive . | . . . . . . Electromagnetic . | . . . . . . Robot Hit Streak 13 | . . 4 13 7 13 Robot Miss Streak 7 | . . 1 6 1 7 Penetration Max 1 | . . . 1 . . Secondary Targets 2 | . . . 2 . . Max Gunslinging Chain 1 | . . . 1 . . Shots Hit Robots 209 | . . 14 109 13 73 Core Hits 104 | . . 7 46 7 44 Critical Kills 2 | . . . 2 . . Critical Parts Destroyed 1 | . . . 1 . . Critical Strikes 12 | . . . 5 5 2 Burn 3 | . . . 2 . 1 Destroy 3 | . . . 3 . . Blast 6 | . . . . 5 1 Melee Attacks . | . . . . . . Impact . | . . . . . . Slashing . | . . . . . . Piercing . | . . . . . . Sneak Attacks . | . . . . . . Combat Hostiles . | . . . . . . Follow-up Attacks . | . . . . . . Damage Inflicted 4508 | . . 172 1882 618 1836 Guns 3200 | . . 167 1873 . 1160 Cannons 1267 | . . . . 604 663 Explosions . | . . . . . . Melee . | . . . . . . Ramming 41 | . . 5 9 14 13 Kinetic 3203 | . . . 1690 604 909 Thermal 1264 | . . 167 183 . 914 Explosive . | . . . . . . Electromagnetic . | . . . . . . Impact . | . . . . . . Slashing . | . . . . . . Piercing . | . . . . . . Highest Corruption 1 | . . . . 1 1 Average Corruption 1 | . . . . 1 1 Corruption Purged . | . . . . . . Corruption Blocked . | . . . . . . Effects 8 | . . . . 5 3 Message Errors 2 | . . . . 2 . Heat Flow Errors 2 | . . . . 1 1 Energy Discharges 3 | . . . . 1 2 Data Loss (major) 1 | . . . . 1 . Overload Shots . | . . . . . . Overflow Damage 106 | . . . . 50 56 Projectiles 106 | . . . . 50 56 Explosions . | . . . . . . Melee . | . . . . . . Knockbacks 5 | . . . . 1 4 Impact . | . . . . . . Kinetic 5 | . . . . 1 4 Secondary . | . . . . . . Self-Inflicted Damage 2 | . . 2 . . . Shots . | . . . . . . Rammed 8 | . . 3 . 1 4 Targets Rammed 12 | . . 3 4 1 4 Kicked 4 | . . . 4 . . Crushed . | . . . . . . Highest Temperature 301 | . . . 84 166 301 Average Temperature 68 | . . . 25 74 113 Received Heat Transfer 1755 | . . 12 549 42 1152 Effects 1 | . . . . . 1 Energy Bleed 1 | . . . . . 1 Siege Activations . | . . . . . . Robots Corrupted . | . . . . . . Combat Hostiles . | . . . . . . Parts Fried . | . . . . . . Impact Corruptions . | . . . . . . Robots Melted . | . . . . . . Combat Hostiles . | . . . . . . Parts Melted 7 | . . 3 1 . 3 Heat Transferred 3039 | . . 375 592 . 2072 Parts Sabotaged . | . . . . . . Parts Stolen . | . . . . . . Parts Stripped . | . . . . . . Power Chain Reactions . | . . . . . . Missiles Intercepted . | . . . . . . Alert | -11 -10 -9 -8 -7 -7 ------- Run | Scr Mat Mat Mat Fac Gar Peak Influence 563 | . 8 233 563 301 542 Initial 211 | . . 3 98 211 146 Average 233 | . 6 96 323 175 292 Maximum Alert Level 2 | . . 1 2 1 2 Low Security (%) 48 | 100 100 82 25 63 34 Level 1 35 | . . 17 39 36 33 Level 2 15 | . . . 35 . 31 Level 3 . | . . . . . . Level 4 . | . . . . . . Level 5 . | . . . . . . High Security . | . . . . . . Max Security . | . . . . . . Squads Dispatched 13 | . . 1 5 7 . Investigation 6 | . . . 2 4 . Extermination 2 | . . . . 2 . Reinforcement 2 | . . 1 . 1 . Assault . | . . . . . . Garrison 3 | . . . 3 . . Intercept . | . . . . . . Searches Triggered . | . . . . . . Construction Impeded . | . . . . . . Haulers Reinforced . | . . . . . . Active Scanning Responses 1 | . . . . . 1 Cargo Convoy Interrupts . | . . . . . . Stealth | -11 -10 -9 -8 -7 -7 --------- Run | Scr Mat Mat Mat Fac Gar Distress Signals 4 | . . 1 2 1 . Communications Jammed 6 | . . . . 6 . Distress Signals 5 | . . . . 5 . Times Spotted 117 | . . 18 41 10 48 Peak Tracking Total 10 | . . 10 7 2 10 Tactical Retreats 6 | . . . 1 . 5 Traps | -11 -10 -9 -8 -7 -7 ------- Run | Scr Mat Mat Mat Fac Gar Traps Triggered . | . . . . . . Indirectly . | . . . . . . Trap Hack Attempts . | . . . . . . Triggered . | . . . . . . Disarmed . | . . . . . . Reprogrammed 6 | . . . . 6 . Reused . | . . . . . . Traps Extracted . | . . . . . . Installed . | . . . . . . Triggered . | . . . . . . Machines | -11 -10 -9 -8 -7 -7 ---------- Run | Scr Mat Mat Mat Fac Gar Machines Disabled 3 | . . . 2 1 . Max in Single Turn 1 | . . . 1 1 . Machines Sabotaged . | . . . . . . Garrisons Compromised . | . . . . . . Overloaded Fab Kills . | . . . . . . Hacking | -11 -10 -9 -8 -7 -7 --------- Run | Scr Mat Mat Mat Fac Gar Machines Accessed 22 | . 1 2 6 13 . Terminals 13 | . 1 2 4 6 . Fabricators 5 | . . . . 5 . Repair Stations . | . . . . . . Recycling Units 2 | . . . 1 1 . Scanalyzers . | . . . . . . Garrison Access 2 | . . . 1 1 . Total Hacks 59 | . 4 5 18 32 . Successful 28 | . 2 2 7 17 . Failed 31 | . 2 3 11 15 . Catastrophic 8 | . 1 . 1 6 . Database Lockouts . | . . . . . . Manual 22 | . 3 1 13 5 . Terminals 36 | . 4 5 16 11 . Fabricators 17 | . . . . 17 . Repair Stations . | . . . . . . Recycling Units 4 | . . . 1 3 . Scanalyzers . | . . . . . . Garrison Access 2 | . . . 1 1 . Terminal Hacks 14 | . 2 2 4 6 . Record 1 | . . 1 . . . Robot Schematic 1 | . . . . 1 . Open DSF 1 | . . . . 1 . Branch Access Points 1 | . 1 . . . . Emergency Access Points 1 | . . 1 . . . Recycling Unit Index 1 | . . . . 1 . Locate Traps 3 | . 1 . 1 1 . Reprogram Traps 1 | . . . . 1 . Security Status 1 | . . . 1 . . Patrol Status 1 | . . . 1 . . Zone Layout 2 | . . . 1 1 . Fabricator Hacks 8 | . . . . 8 . Network Status 3 | . . . . 3 . Load Schematic 3 | . . . . 3 . Build 2 | . . . . 2 . Repair Station Hacks . | . . . . . . Recycling Unit Hacks . | . . . . . . Scanalyzer . | . . . . . . Garrison Access Hacks 2 | . . . 1 1 . Unlock Access 2 | . . . 1 1 . Unauthorized Hacks 4 | . . . 2 2 . Terminals 1 | . . . 1 . . Detonate 1 | . . . 1 . . Fabricators 1 | . . . . 1 . Report 1 | . . . . 1 . Repair Stations . | . . . . . . Recycling Units 2 | . . . 1 1 . Reject 1 | . . . . 1 . Tunnel 1 | . . . 1 . . Scanalyzers . | . . . . . . Garrison Access . | . . . . . . Data Cores Recovered 1 | . . . . 1 . Used 1 | . . . . 1 . Hacking Detections 20 | . 1 2 5 12 . Full Trace Events 5 | . . . 1 4 . Feedback Events 1 | . . . . 1 . Corruption 1 | . . . . 1 . Feedback Blocked . | . . . . . . Robot Schematics Acquired 1 | . . . . 1 . Robots Built 3 | . . . . 3 . Authchips . | . . . . . . Time 67 | . . . . 67 . Total Robot Build Rating 12 | . . . . 12 . Part Schematics Acquired . | . . . . . . Parts Built 2 | . . . . 2 . Authchips . | . . . . . . Time 106 | . . . . 106 . Total Part Build Rating 12 | . . . . 12 . Parts Repaired . | . . . . . . Time . | . . . . . . Parts Recycled . | . . . . . . Recycled Matter . | . . . . . . Retrieved Matter . | . . . . . . Retrieved Components . | . . . . . . Parts Scanalyzed . | . . . . . . Part Schematics Acquired . | . . . . . . Parts Damaged . | . . . . . . Bothacking | -11 -10 -9 -8 -7 -7 ------------ Run | Scr Mat Mat Mat Fac Gar Used RIF Installer 1 | . . . . . 1 Robots Hacked 10 | . . 1 3 2 4 Non-combat 1 | . . . . 1 . Combat 9 | . . 1 3 1 4 Robot Hacks Applied 14 | . . 1 6 3 4 find_recycling 1 | . . . . 1 . find_shortcuts 9 | . . 1 3 1 4 find_garrison 4 | . . . 3 1 . Relay Couplers Released . | . . . . . . Fabnet Peak Effective % . | . . . . . . Robots Rewired . | . . . . . . Allies Hacked . | . . . . . . Hacks Repelled . | . . . . . . Allies | -11 -10 -9 -8 -7 -7 -------- Run | Scr Mat Mat Mat Fac Gar Total Allies 3 | . . . . 3 . Largest Group 3 | . . . . 3 . Highest-Rated Group 90 | . . . . 90 . Highest-Rated Ally 30 | . . . . 30 . Total Orders . | . . . . . . Ally Attacks 21 | . . . . 21 . Total Damage 466 | . . . . 466 . Kills 8 | . . . . 8 . Allies Corrupted . | . . . . . . Allies Melted . | . . . . . . Intel | -11 -10 -9 -8 -7 -7 ------- Run | Scr Mat Mat Mat Fac Gar Robot Analysis Total 7 | 1 . 1 2 1 2 Derelict Logs Recovered . | . . . . . . Drone Launches . | . . . . . . Drone Recoveries . | . . . . . . Exploration | -11 -10 -9 -8 -7 -7 ------------- Run | Scr Mat Mat Mat Fac Gar Turns Passed 3885 | 11 72 165 1283 1844 510 Spaces Moved 2490 | 18 73 126 723 1346 204 Core 135 | 13 . 22 31 64 5 Treads 402 | . . . 79 201 122 Legs 717 | . . 27 613 . 77 Wheels 1236 | 5 73 77 . 1081 . Hover . | . . . . . . Flight . | . . . . . . Fastest Speed 50 | 50 100 50 50 50 50 Average Speed 114 | 63 100 95 121 108 147 Slowest Speed 200 | 100 100 120 200 170 170 Overloaded Moves . | . . . . . . Propulsion Burnouts . | . . . . . . Robots Hopped 1 | . . . . . 1 Cave-ins Triggered . | . . . . . . Exploration Rate (%) 28 | 4 27 22 49 32 37 Regions Visited 5 Branch Regions . Pre-discovered Areas 1 | . . . 1 . . Known Exits Taken 1 | . . . . 1 . Unknown Exits Taken 4 | 1 1 1 1 . . Scrap Searched . | . . . . . . Spaces Dug . | . . . . . . Terrain Destroyed 12 | . . . 1 5 6 Melee . | . . . . . . Projectile 12 | . . . 1 5 6 AOE . | . . . . . . Terrain Rammed . | . . . . . . Walls Destroyed . | . . . . . . Machines Disabled . | . . . . . . Actions | -11 -10 -9 -8 -7 -7 --------- Run | Scr Mat Mat Mat Fac Gar Total 3238 | 17 72 151 962 1731 305 Wait 430 | . . . 144 275 11 Move 2483 | 17 72 125 722 1345 202 Hop 1 | . . . . . 1 Pick Up 53 | . . 3 1 49 . Fast Attach . | . . . . . . Attach . | . . . . . . Detach . | . . . . . . Swap . | . . . . . . Drop 30 | . . 1 1 28 . Fire 212 | . . 19 90 16 87 Melee . | . . . . . . Ram 3 | . . 3 . . . Kick 4 | . . . 4 . . Crush 5 | . . . . 1 4 Escape Stasis . | . . . . . . Rewire . | . . . . . . Trap . | . . . . . . Miscellaneous 17 | . . . . 17 . Route ------- -11/Scrapyard -10/Materials (discovered 2 exits: *Mat / Min) -9/Materials -8/Materials (discovered 3 exits: *Fac x2 / Gar) -7/Factory -7/Garrison History --------- Turn | Location | Event 3 | -11/Scrapyard | Discovered new exit (range 15) 12 | -11/Scrapyard | Entered Materials 27 | -10/Materials | Identified exit to Mines 71 | -10/Materials | Discovered new exit (range 14) 84 | -10/Materials | Entered another Materials area 199 | -9/Materials | Lost 3 parts (1p1n1u) 210 | -9/Materials | Core integrity fell below 50% 232 | -9/Materials | Discovered new exit (range 13) 249 | -9/Materials | Entered another Materials area 675 | -8/Materials | Discovered new exit (range 5) 836 | -8/Materials | Lost 6 parts (2n2u2w) 966 | -8/Materials | Discovered new exit (range 15) 978 | -8/Materials | Core integrity fell below 50% 1268 | -8/Materials | Garrison activated, responded to threat 1350 | -8/Materials | Identified exit to Garrison 1377 | -8/Materials | Core integrity fell below 20% 1532 | -8/Materials | Entered Factory 1675 | -7/Factory | Identified exit to DSF 1722 | -7/Factory | Fabricated Imp. Launcher Guidance Computer (x2) 1727 | -7/Factory | Fabricated L-41 Fighter (x3) 3369 | -7/Factory | Identified exit to Garrison 3376 | -7/Factory | Entered Garrison 3385 | -7/Garrison | Installed Relay Interface Framework 3442 | -7/Garrison | Triggered checkpoint 3506 | -7/Garrison | Triggered checkpoint 3646 | -7/Garrison | Lost 4 parts (3u1w) 3650 | -7/Garrison | Core integrity fell below 50% 3690 | -7/Garrison | Destroyed 7 combat bots 3726 | -7/Garrison | Lost 7 parts (1p2n2u2w) 3731 | -7/Garrison | Core integrity fell below 20% 3886 | -7/Garrison | Destroyed by S-27 Virus with Autogun Last Messages --------------- 03714_ G-47 Trooper overheating. 03720_ Particle Gun melted. 03720_ G-47 Trooper destroyed. 03727_ Lgt. Nuclear Core destroyed. 03750_ G-47 Trooper suffers critical hit (Burn). 03752_ G-47 Trooper overheating. 03754_ G-47 Trooper heat damages Imp. Heat Sink. 03755_ G-47 Trooper overheating. 03760_ Destroyed Lgt. Nuclear Core. 03760_ G-47 Trooper overheating. 03774_ G-47 Trooper destroyed. 03775_ Aluminum Leg destroyed. 03775_ Particle Gun destroyed. 03786_ Released control of G-47 Trooper. 03787_ Took control of G-47 Trooper. 03791_ System corrupted: Energy discharge (-33). 03797_ Y-54 Guardian destroyed. 03854_ H-61 Shepherd destroyed. 03882_ Lgt. Nuclear Core destroyed. 03882_ S-27 Virus destroyed. Map ----- +----------------------------------------------------+ | ?????????# #???????????????????????????????????? | | ?????????# #???????????????????????????????????? | | ?????????# #???????????????????????????????????? | | ?????????# #???????????????????????????????????? | | ?????????# #???????????????????????????????????? | | ?????????# #???????????????????????????????????? | | ?????????# #???????????????????????????????????? | | ?????????# #???????????????????????????????????? | | ?????????# #???????????????????????????????????? | | ?????????# #???????????????????????????????????? | | ?????????# #???????????????????????????????????? | | ?????????# #???????????????????????????????????? | | ?????????# #???????????????????????????????????? | | ########## #???????????????????????????????????? | | #???????????????????????????????????? | | #???????????????????????????????????? | | ##### ## ^^#???????????????????????????????????? | | ????# ## ^^#???????????????????????????????????? | | ????##+### %#???????????????????? ##????????????? | | ?????# #?# !#??????????????????? + ????????????? | | ?????# #?# #???????????######?? #?????????????? | | ?????# #?# #??# ???????#% #? #?????????????? | | ?????# ###%! ####+######## ## ^ #?????????????? | | ?????# " * ^%%* ! [ g ^#?????????????? | | ?????##### ^ [ *% ! #?????????????? | | ?????????# * ^ %=%% g% #?????????????? | | ?????????#"######;;;[=*%##%%s ## #?????????????? | | ?????????##?????#####[%*"#%= ## =%###???????????? | | ??????????????????# %=*=%! #???????????? | | ??????????????????# !%=! #???????????? | | ??????????????????# =% #???????????? | | ??????????????????# =* #???????????? | | ??????????????????### ## ## ###???????????? | | ??????????########### ## ## #?????????????? | | ??????????# ! #?????????????? | | ??????????# = %+ #????????? | | ??????????# ###+#### [ ##????????????? | | ??????????#????# #??## ## ## ##?????????????? | | ???????????????# #???# ## #? #??????????????? | | ???????????????# #???# #######?? #??????????????? | | ???????????????# #???# #???????? #??????????????? | | ??????????????? ???# #?????????#??????????????? | | ???????????????###???# #????????????????????????? | | ?????????????????????# #????????????????????????? | | ????????????????????? #????????????????????????? | | ????????????????????? #????????????????????????? | | ?????????????????????####????????????????????????? | | ?????????????????????????????????????????????????? | | ?????????????????????????????????????????????????? | | ?????????????????????????????????????????????????? | +----------------------------------------------------+ Best States ------------- Heat Dissipation 52 Energy Generation 21 Energy Capacity 240 Matter Stores 200 Matter Capacity 200 Sight Range 18 Robot Scan Range 20 Terrain Scan Density 10 Jamming Range 12 EM Shielding 2 Armor Coverage 600 Resistance: KI 25 Resistance: EX 50 Resistance: I 50 Resistance: S 50 Resistance: P 50 Weapon Cycling 15 Evasion (%) 55 Targeting Accuracy 5 Recoil Reduction 3 Item Schematics ----------------- None Robot Schematics ------------------ L-41 Fighter | -7/Factory | Hacked Fabricated ------------ Imp. Launcher Guidance Computer | x2 | -7/Factory | Preloaded L-41 Fighter | x3 | -7/Factory | Preloaded Alien Tech Used ----------------- None Achievements -------------- None Challenges ------------ None Polymind | -11 -10 -9 -8 -7 -7 ---------- Run | Scr Mat Mat Mat Fac Gar Robots Controlled 11 | 1 . 1 3 2 4 Combat Hostiles 9 | . . 1 3 1 4 Allies . | . . . . . . Classes Controlled 5 | 1 . 1 2 1 . Average Host Suspicion 74 | . 18 77 91 64 74 Unsuspicious Activity 525 | 2 . 3 121 399 . Returns to Shadow 1 | . . . . 1 . Fuzzy Dispatches 1 | . . . . 1 . Protomatter Created 471 | . . 3 130 164 174 Used 353 | 5 . 15 91 101 141 Decayed 63 | . . . 10 30 23 Highest Spend 96 | 5 . 15 34 96 51 Top 5 Hosts by Kills: H-55 Commando (-8/Materials: 11) H-61 Shepherd (-7/Factory: 9) Y-54 Guardian (-7/Garrison: 7) G-34 Mercenary (-9/Materials: 6) Game ------ Seed BackupActuatorDoomcannon Manual? 0 Play Time 00:41:35 Cumulative 58.6 hours Start 2022.12.27 @ 15:59:33 End 2022.12.27 @ 16:37:20 Sessions 1 Manual Loads 0 Difficulty Rogue Special Mode Winter2022/Polymind Game No. 41 Rogue 35 Adventurer 6 Explorer 0 Win Type - Total 0 Types 0/0/0/0/0/0/0/0/0 Lore% 46 Gallery% 46 Achievement% 38 Wizard Run 0 Options --------- ASCII 0 Keyboard 0 Movement Mouse Keybinds 0 Fullscreen 1 Font 18/SmallcapsGlow Map View 76x50 Tactical HUD 1 Map Filters NONE Filters NONE Steam 1 RUN: c9f99a20-dd4e-4b1d-bd49-f0624d616940